fUST/lending_fUST_20251004
["ID","MTS","AMOUNT","RATE_DAILY","PERIOD"]
[389152734,1759591894432,-850.74,0.00020821,2]
[389152735,1759591894441,-782.55,0.00020821,2]
[389152736,1759591894451,-500.0,0.00020821,2]
[389152737,1759591894460,-500.0,0.00020821,2]
[389152738,1759591894470,-1154.37,0.00020821,2]
[389152739,1759591894479,-500.0,0.00020821,2]
[389152740,1759591894489,-837.9,0.00020821,2]
[389152741,1759591894498,-2615.62,0.00020821,2]
[389152742,1759591894508,-613.77,0.00020821,2]
[389152743,1759591894518,-633.24,0.00020821,2]
[389152744,1759591894527,-695.31,0.00020821,2]
[389152745,1759591894537,-3304.75,0.00020821,2]
[389152746,1759591894546,-1142.91,0.00020821,2]
[389152747,1759591894556,-500.0,0.00020821,2]
[389152748,1759591894565,-1593.05,0.00020821,2]
[389152749,1759591894575,-2044.74,0.00020821,2]
[389152750,1759591894584,-1681.94,0.00020821,2]
[389152751,1759591894594,-424.7276394,0.00020821,2]
[389152752,1759591894603,-500.0,0.00020821,2]
[389152753,1759591894612,-500.0,0.00020821,2]
[389152754,1759591894622,-943.18,0.00020821,2]
[389152755,1759591894632,-1325.84,0.00020821,2]
[389152756,1759591894641,-500.0,0.00020821,2]
[389152757,1759591894650,-1462.47,0.00020821,2]
[389152758,1759591894660,-894.67,0.00020821,2]
[389152759,1759591894669,-1441.01,0.00020821,2]
[389152760,1759591894679,-477.22318298,0.00020821,2]
[389152761,1759591894689,-948.86,0.00020821,2]
[389152762,1759591894699,-582.49,0.00020821,2]
[389152763,1759591894708,-1083.58,0.00020821,2]
[389152764,1759591894718,-2269.4,0.00020821,2]
[389152765,1759591894727,-859.66,0.00020821,2]
[389152766,1759591894737,-7279.62,0.00020821,2]
[389152767,1759591894746,-500.0,0.00020821,2]
[389152768,1759591894756,-885.0,0.00020821,2]
[389152769,1759591894766,-500.0,0.00020821,2]
[389152770,1759591894775,-500.0,0.00020821,2]
[389152771,1759591894786,-500.0,0.00020821,2]
[389152772,1759591894796,-500.0,0.00020821,2]
[389152773,1759591894805,-2242.57,0.00020821,2]
[389152774,1759591894814,-521.71,0.00020821,2]
[389152775,1759591894823,-500.0,0.00020821,2]
[389152776,1759591894833,-1253.86,0.00020821,2]
[389152777,1759591894845,-1820.23,0.00020821,2]
[389152778,1759591894855,-1593.62,0.00020821,2]
[389152779,1759591894866,-500.0,0.00020821,2]
[389152780,1759591894876,-500.0,0.00020821,2]
[389152781,1759591894886,-2434.85,0.00020821,2]
[389152782,1759591894896,-500.0,0.00020821,2]
[389152783,1759591894906,-500.0,0.00020821,2]
[389152784,1759591894915,-500.0,0.00020821,2]
[389152785,1759591894926,-983.67,0.00020821,2]
[389152786,1759591894936,-1438.86,0.00020821,2]
[389152787,1759591894946,-3420.09,0.00020821,2]
[389152788,1759591894956,-1155.35,0.00020821,2]
[389152789,1759591894966,-500.0,0.00020821,2]
[389152790,1759591894976,-500.0,0.00020821,2]
[389152791,1759591894986,-883.76,0.00020821,2]
[389152792,1759591894996,-500.0,0.00020821,2]
[389152793,1759591895006,-1284.14,0.00020821,2]
[389152794,1759591895016,-669.76,0.00020821,2]
[389152795,1759591895025,-323.16190074,0.00020821,2]
[389152796,1759591895035,-440.89228745,0.00020821,2]
[389152797,1759591895044,-5883.16,0.00020821,2]
[389152798,1759591895054,-5418.8,0.00020821,2]
[389152799,1759591895064,-500.0,0.00020821,2]
[389152800,1759591895073,-500.0,0.00020821,2]
[389152801,1759591895083,-1049.37,0.00020821,2]
[389152802,1759591895092,-659.62,0.00020821,2]
[389152803,1759591895102,-500.0,0.00020821,2]
[389152804,1759591895111,-599.3,0.00020821,2]
[389152805,1759591895120,-500.0,0.00020821,2]
[389152806,1759591895130,-500.0,0.00020821,2]
[389152807,1759591895140,-6787.62,0.00020821,2]
[389152808,1759591895150,-1550.12,0.00020821,2]
[389152809,1759591895161,-645.14,0.00020821,2]
[389152810,1759591895171,-1658.15,0.00020821,2]
[389152811,1759591895181,-500.0,0.00020821,2]
[389152812,1759591895190,-686.1,0.00020821,2]
[389152813,1759591895199,-1620.12612654,0.00020831,2]
[389152814,1759591895209,-1500.0,0.00020831,2]
[389152815,1759591895218,-500.0,0.00020863,2]
[389152816,1759591895228,-1016.88134162,0.00020868,2]
[389152817,1759591895238,-1500.0,0.00020868,2]
[389152818,1759591895248,-1500.0,0.00020868,2]
[389152819,1759591895257,-1500.0,0.00020868,2]
[389152820,1759591895267,-1343.26556894,0.00020868,2]
[389152821,1759591895277,-1500.0,0.00020868,2]
[389152822,1759591895286,-595.88875907,0.00020868,2]
[389152823,1759591895296,-1500.0,0.00020868,2]
[389152824,1759591895306,-1257.69046467,0.00020868,2]
[389152825,1759591895316,-444.00664856,0.00020868,2]
[389152826,1759591895326,-1500.0,0.00020868,2]
[389152827,1759591895336,-1507.60577646,0.00020868,2]
[389152828,1759591895346,-1500.0,0.00020868,2]
[389152829,1759591895356,-1500.0,0.00020868,2]
[389152830,1759591895366,-1500.0,0.00020868,2]
[389152831,1759591895376,-220.95396893,0.00020868,2]
[389152832,1759591895386,-1500.0,0.00020868,2]
[389152833,1759591895395,-1500.0,0.00020868,2]
[389152834,1759591895405,-1500.0,0.00020868,2]
[389152835,1759591895413,-1500.0,0.00020868,2]
[389152836,1759591895424,-1500.0,0.00020868,2]
[389152837,1759591895434,-4268.80322432,0.00020913,2]
[389152838,1759591895443,-500.0,0.00020929,2]
[389152839,1759591895452,-500.0,0.00020929,2]
[389152840,1759591895462,-10000.0,0.00021,5]
[389152841,1759591895471,-250.0,0.00021045,2]
[389152842,1759591895481,-166.0,0.0002106,2]
[389152843,1759591895491,-1500.0,0.00021068,2]
[389152844,1759591895500,-612.80898852,0.00021068,2]
[389152845,1759591895510,-1500.0,0.00021068,2]
[389152846,1759591895519,-1500.0,0.00021068,2]
[389152847,1759591895529,-1500.0,0.00021068,2]
[389152848,1759591895538,-1500.0,0.00021068,2]
[389152849,1759591895548,-1500.0,0.00021068,2]
[389152850,1759591895557,-1500.0,0.00021068,2]
[389152851,1759591895566,-476.0,0.00021086,2]
[389152852,1759591895576,-155.42,0.00021095,2]
[389152853,1759591895585,-500.0,0.00021095,2]
[389152854,1759591895597,-500.0,0.00021095,2]
[389152855,1759591895614,-1039.39,0.00021095,2]
[389152856,1759591895634,-507.83,0.00021095,2]
[389152857,1759591895645,-207.69572856,0.00021095,2]
[389152858,1759591895655,-500.0,0.00021095,2]
[389152859,1759591895818,-500.0,0.00021095,2]
[389152860,1759591895846,-500.0,0.00021095,2]
[389152861,1759591895856,-1109.72,0.00021095,2]
[389152862,1759591895866,-658.4,0.00021095,2]
[389152863,1759591895876,-500.0,0.00021095,2]
[389152864,1759591895886,-500.0,0.00021095,2]
[389152865,1759591895895,-500.0,0.00021095,2]
[389152866,1759591895905,-1722.53,0.00021095,2]
[389152867,1759591895915,-500.0,0.00021095,2]
[389152868,1759591895925,-500.0,0.00021095,2]
[389152869,1759591895935,-500.0,0.00021095,2]
[389152870,1759591895945,-500.0,0.00021095,2]
[389152871,1759591895955,-500.0,0.00021095,2]
[389152872,1759591895965,-151.0,0.00021095,2]
[389152873,1759591895974,-621.50103138,0.00021095,2]
[389152874,1759591895984,-561.02,0.00021095,2]
[389152875,1759591895994,-500.0,0.00021095,2]
[389152876,1759591896004,-151.0,0.00021095,2]
[389152877,1759591896014,-500.0,0.00021095,2]
[389152878,1759591896024,-606.7,0.00021095,2]
[389152879,1759591896034,-151.0,0.00021095,2]
[389152880,1759591896043,-500.0,0.00021095,2]
[389152881,1759591896053,-576.96,0.00021095,2]
[389152882,1759591896062,-500.0,0.00021095,2]
[389152883,1759591896072,-500.0,0.00021095,2]
[389152884,1759591896082,-815.78,0.00021095,2]
[389152885,1759591896091,-500.0,0.00021095,2]
[389152886,1759591896103,-500.0,0.00021095,2]
[389152887,1759591896114,-551.35,0.00021095,2]
[389152888,1759591896123,-503.54,0.00021095,2]
[389152889,1759591896132,-442.67511379,0.00021095,2]
[389152890,1759591896142,-552.14,0.00021095,2]
[389152891,1759591896151,-151.0,0.00021095,2]
[389152892,1759591896161,-500.0,0.00021095,2]
[389152893,1759591896170,-500.0,0.00021095,2]
[389152894,1759591896180,-500.0,0.00021095,2]
[389152895,1759591896190,-500.0,0.00021095,2]
[389152896,1759591896199,-500.0,0.00021095,2]
[389152897,1759591896209,-151.0,0.00021095,2]
[389152898,1759591896221,-500.0,0.00021095,2]
[389152899,1759591896231,-983.77,0.00021095,2]
[389152900,1759591896240,-717.9,0.00021095,2]
[389152901,1759591896249,-500.0,0.00021095,2]
[389152902,1759591896259,-500.0,0.00021095,2]
[389152903,1759591896268,-535.53,0.00021095,2]
[389152904,1759591896277,-500.0,0.00021095,2]
[389152905,1759591896287,-539.76,0.00021095,2]
[389152906,1759591896297,-1081.73,0.00021095,2]
[389152907,1759591896306,-785.95,0.00021095,2]
[389152908,1759591896316,-500.0,0.00021095,2]
[389152909,1759591896326,-500.0,0.00021095,2]
[389152910,1759591896336,-996.16,0.00021095,2]
[389152911,1759591896345,-500.0,0.00021095,2]
[389152912,1759591896355,-500.0,0.00021095,2]
[389152913,1759591896367,-1061.25,0.00021095,2]
[389152914,1759591896377,-500.0,0.00021095,2]
[389152915,1759591896386,-1035.1,0.00021095,2]
[389152916,1759591896396,-500.0,0.00021095,2]
[389152917,1759591896405,-571.62,0.00021095,2]
[389152918,1759591896414,-500.0,0.00021095,2]
[389152919,1759591896424,-940.09,0.00021095,2]
[389152920,1759591896433,-500.0,0.00021095,2]
[389152921,1759591896443,-500.0,0.00021095,2]
[389152922,1759591896453,-685.26,0.00021095,2]
[389152923,1759591896462,-1089.32,0.00021095,2]
[389152924,1759591896472,-521.57,0.00021095,2]
[389152925,1759591896481,-500.0,0.00021095,2]
[389152926,1759591896491,-500.0,0.00021095,2]
[389152927,1759591896500,-500.0,0.00021095,2]
[389152928,1759591896510,-500.0,0.00021095,2]
[389152929,1759591896520,-500.0,0.00021095,2]
[389152930,1759591896531,-500.0,0.00021095,2]
[389152931,1759591896542,-500.0,0.00021095,2]
[389152932,1759591896551,-500.0,0.00021095,2]
[389152933,1759591896561,-500.0,0.00021095,2]
[389152934,1759591896571,-500.0,0.00021095,2]
[389152935,1759591896580,-556.89,0.00021095,2]
[389152936,1759591896590,-500.0,0.00021095,2]
[389152937,1759591896600,-500.0,0.00021095,2]
[389152938,1759591896610,-500.0,0.00021095,2]
[389152939,1759591896621,-935.25,0.00021095,2]
[389152940,1759591896630,-500.0,0.00021095,2]
[389152941,1759591896640,-638.24,0.00021095,2]
[389152942,1759591896650,-500.0,0.00021095,2]
[389152943,1759591896659,-3190.15,0.00021095,2]
[389152944,1759591896669,-500.0,0.00021095,2]
[389152945,1759591896679,-500.0,0.00021095,2]
[389152946,1759591896689,-500.0,0.00021095,2]
[389152947,1759591896698,-1767.35,0.00021095,2]
[389152948,1759591896708,-500.0,0.00021095,2]
[389152949,1759591896718,-500.0,0.00021095,2]
[389152950,1759591896728,-1021.71,0.00021095,2]
[389152951,1759591896739,-500.0,0.00021095,2]
[389152952,1759591896748,-722.22,0.00021095,2]
[389152953,1759591896758,-512.79,0.00021095,2]
[389152954,1759591896768,-500.0,0.00021095,2]
[389152955,1759591896778,-1130.19,0.00021095,2]
[389152956,1759591896788,-450.34,0.00021095,2]
[389152957,1759591896797,-500.0,0.00021095,2]
[389152958,1759591896807,-594.94,0.00021095,2]
[389152959,1759591896817,-500.0,0.00021095,2]
[389152960,1759591896827,-1634.65,0.00021095,2]
[389152961,1759591896836,-755.21,0.00021095,2]
[389152962,1759591896850,-638.84,0.00021095,2]
[389152963,1759591896860,-1184.66,0.00021095,2]
[389152964,1759591896869,-1037.44,0.00021095,2]
[389152965,1759591896879,-500.0,0.00021095,2]
[389152966,1759591896890,-500.0,0.00021095,2]
[389152967,1759591896899,-500.0,0.00021095,2]
[389152968,1759591896909,-1102.84,0.00021095,2]
[389152969,1759591896920,-500.0,0.00021095,2]
[389152970,1759591896931,-500.0,0.00021095,2]
[389152971,1759591896941,-500.0,0.00021095,2]
[389152972,1759591896950,-500.0,0.00021095,2]
[389152973,1759591896960,-888.19,0.00021095,2]
[389152974,1759591896970,-500.0,0.00021095,2]
[389152975,1759591896979,-500.0,0.00021095,2]
[389152976,1759591896989,-707.88,0.00021095,2]
[389152977,1759591896999,-500.0,0.00021095,2]
[389152978,1759591897008,-3472.11,0.00021095,2]
[389152979,1759591897018,-500.0,0.00021095,2]
[389152980,1759591897028,-607.97,0.00021095,2]
[389152981,1759591897038,-500.0,0.00021095,2]
[389152982,1759591897047,-2253.27,0.00021095,2]
[389152983,1759591897057,-500.0,0.00021095,2]
[389152984,1759591897066,-500.0,0.00021095,2]
[389152985,1759591897075,-1207.5,0.00021095,2]
[389152986,1759591897084,-896.72,0.00021095,2]
[389152987,1759591897093,-500.0,0.00021095,2]
[389152988,1759591897103,-1747.71,0.00021095,2]
[389152989,1759591897112,-500.0,0.00021095,2]
[389152990,1759591897121,-500.0,0.00021095,2]
[389152991,1759591897131,-595.63,0.00021095,2]
[389152992,1759591897140,-500.0,0.00021095,2]
[389152993,1759591897150,-827.71,0.00021095,2]
[389152994,1759591897159,-500.0,0.00021095,2]
[389152995,1759591897168,-504.25,0.00021095,2]
[389152996,1759591897179,-500.0,0.00021095,2]
[389152997,1759591897188,-890.07,0.00021095,2]
[389152998,1759591897198,-500.0,0.00021095,2]
[389152999,1759591897207,-914.63,0.00021095,2]
[389153000,1759591897216,-1015.82,0.00021095,2]
[389153001,1759591897225,-500.0,0.00021095,2]
[389153002,1759591897235,-333.6448354,0.00021095,2]
[389153003,1759591897244,-500.0,0.00021095,2]
[389153004,1759591897253,-500.0,0.00021095,2]
[389153005,1759591897262,-500.0,0.00021095,2]
[389153006,1759591897272,-532.07,0.00021095,2]
[389153007,1759591897281,-870.38,0.00021095,2]
[389153008,1759591897291,-500.0,0.00021095,2]
[389153009,1759591897300,-3160.55,0.00021095,2]
[389153010,1759591897310,-1519.75,0.00021095,2]
[389153011,1759591897318,-500.0,0.00021095,2]
[389153012,1759591897328,-470.08892628,0.00021095,2]
[389153013,1759591897338,-1300.89,0.00021095,2]
[389153014,1759591897348,-2067.67,0.00021095,2]
[389153015,1759591897358,-500.0,0.00021095,2]
[389153016,1759591897367,-614.77,0.00021095,2]
[389153017,1759591897377,-857.26,0.00021095,2]
[389153018,1759591897386,-560.4,0.00021095,2]
[389153019,1759591897396,-1254.52,0.00021095,2]
[389153020,1759591897406,-731.76,0.00021095,2]
[389153021,1759591897415,-500.0,0.00021095,2]
[389153022,1759591897427,-500.0,0.00021095,2]
[389153023,1759591897437,-500.0,0.00021095,2]
[389153024,1759591897447,-1479.56,0.00021095,2]
[389153025,1759591897457,-3943.88,0.00021095,2]
[389153026,1759591897467,-500.0,0.00021095,2]
[389153027,1759591897476,-500.0,0.00021095,2]
[389153028,1759591897486,-1175.17,0.00021095,2]
[389153029,1759591897496,-1420.43,0.00021095,2]
[389153030,1759591897506,-500.0,0.00021095,2]
[389153031,1759591897515,-3237.92,0.00021095,2]
[389153032,1759591897524,-500.0,0.00021095,2]
[389153033,1759591897534,-1919.12,0.00021095,2]
[389153034,1759591897544,-968.29,0.00021095,2]
[389153035,1759591897555,-668.17,0.00021095,2]
[389153036,1759591897564,-4834.1,0.00021095,2]
[389153037,1759591897574,-863.7,0.00021095,2]
[389153038,1759591897583,-4308.41,0.00021095,2]
[389153039,1759591897592,-500.0,0.00021095,2]
[389153040,1759591897602,-1158.05,0.00021095,2]
[389153041,1759591897611,-500.0,0.00021095,2]
[389153042,1759591897620,-1128.4,0.00021095,2]
[389153043,1759591897629,-500.0,0.00021095,2]
[389153044,1759591897639,-551.2175941,0.00021095,2]
[389153045,1759591897648,-1888.79,0.00021095,2]
[389153046,1759591897657,-500.0,0.00021095,2]
[389153047,1759591897667,-500.0,0.00021095,2]
[389153048,1759591897678,-507.40357399,0.00021095,2]
[389153049,1759591897687,-3598.98,0.00021095,2]
[389153050,1759591897696,-500.0,0.00021095,2]
[389153051,1759591897706,-500.0,0.00021095,2]
[389153052,1759591897715,-3279.78,0.00021095,2]
[389153053,1759591897724,-2623.19,0.00021095,2]
[389153054,1759591897733,-500.0,0.00021095,2]
[389153055,1759591897743,-1046.7,0.00021095,2]
[389153056,1759591897752,-500.0,0.00021095,2]
[389153057,1759591897761,-500.0,0.00021095,2]
[389153058,1759591897770,-500.0,0.00021095,2]
[389153059,1759591897779,-500.0,0.00021095,2]
[389153060,1759591897790,-500.0,0.00021095,2]
[389153061,1759591897800,-916.44,0.00021095,2]
[389153062,1759591897810,-649.69,0.00021095,2]
[389153063,1759591897821,-500.0,0.00021095,2]
[389153064,1759591897833,-716.0,0.00021095,2]
[389153065,1759591897843,-502.19,0.00021095,2]
[389153066,1759591897853,-692.99,0.00021095,2]
[389153067,1759591897863,-1677.96,0.00021095,2]
[389153068,1759591897873,-500.0,0.00021095,2]
[389153069,1759591897882,-725.08,0.00021095,2]
[389153070,1759591897892,-543.32,0.00021095,2]
[389153071,1759591897902,-500.0,0.00021095,2]
[389153072,1759591897911,-2622.01,0.00021095,2]
[389153073,1759591897921,-1956.57,0.00021095,2]
[389153074,1759591897932,-500.0,0.00021095,2]
[389153075,1759591897942,-685.43,0.00021095,2]
[389153076,1759591897953,-4582.94,0.00021095,2]
[389153077,1759591897963,-1066.95,0.00021095,2]
[389153078,1759591897973,-620.36,0.00021095,2]
[389153079,1759591897983,-1558.65,0.00021095,2]
[389153080,1759591897993,-500.0,0.00021095,2]
[389153081,1759591898003,-500.0,0.00021095,2]
[389153082,1759591898012,-583.58,0.00021095,2]
[389153083,1759591898022,-850.74,0.00021095,2]
[389153084,1759591898032,-782.55,0.00021095,2]
[389153085,1759591898042,-500.0,0.00021095,2]
[389153086,1759591898053,-500.0,0.00021095,2]
[389153087,1759591898063,-500.0,0.00021095,2]
[389153088,1759591898073,-1154.37,0.00021095,2]
[389153089,1759591898083,-837.9,0.00021095,2]
[389153090,1759591898093,-2615.62,0.00021095,2]
[389153091,1759591898103,-613.77,0.00021095,2]
[389153092,1759591898112,-695.31,0.00021095,2]
[389153093,1759591898122,-633.24,0.00021095,2]
[389153094,1759591898132,-3304.75,0.00021095,2]
[389153095,1759591898143,-1142.91,0.00021095,2]
[389153096,1759591898154,-500.0,0.00021095,2]
[389153097,1759591898164,-1593.05,0.00021095,2]
[389153098,1759591898175,-1681.94,0.00021095,2]
[389153099,1759591898184,-2044.74,0.00021095,2]
[389153100,1759591898195,-500.0,0.00021095,2]
[389153101,1759591898205,-500.0,0.00021095,2]
[389153102,1759591898215,-943.18,0.00021095,2]
[389153103,1759591898226,-1325.84,0.00021095,2]
[389153104,1759591898235,-500.0,0.00021095,2]
[389153105,1759591898245,-1462.47,0.00021095,2]
[389153106,1759591898255,-894.67,0.00021095,2]
[389153107,1759591898265,-1441.01,0.00021095,2]
[389153108,1759591898276,-948.86,0.00021095,2]
[389153109,1759591898286,-582.49,0.00021095,2]
[389153110,1759591898297,-1083.58,0.00021095,2]
[389153111,1759591898308,-2269.4,0.00021095,2]
[389153112,1759591898317,-859.66,0.00021095,2]
[389153113,1759591898328,-7279.62,0.00021095,2]
[389153114,1759591898337,-500.0,0.00021095,2]
[389153115,1759591898347,-885.0,0.00021095,2]
[389153116,1759591898358,-500.0,0.00021095,2]
[389153117,1759591898368,-500.0,0.00021095,2]
[389153118,1759591898378,-500.0,0.00021095,2]
[389153119,1759591898388,-500.0,0.00021095,2]
[389153120,1759591898398,-2242.57,0.00021095,2]
[389153121,1759591898407,-521.71,0.00021095,2]
[389153122,1759591898417,-648.5025742,0.00021095,2]
[389153123,1759591898428,-1253.86,0.00021095,2]
[389153124,1759591898438,-1820.23,0.00021095,2]
[389153125,1759591898448,-1593.62,0.00021095,2]
[389153126,1759591898459,-500.0,0.00021095,2]
[389153127,1759591898469,-500.0,0.00021095,2]
[389153128,1759591898479,-2434.85,0.00021095,2]
[389153129,1759591898488,-500.0,0.00021095,2]
[389153130,1759591898498,-500.0,0.00021095,2]
[389153131,1759591898508,-345.71553071,0.00021095,2]
[389153132,1759591898517,-983.67,0.00021095,2]
[389153133,1759591898527,-1438.86,0.00021095,2]
[389153134,1759591898537,-3420.09,0.00021095,2]
[389153135,1759591898546,-1155.35,0.00021095,2]
[389153136,1759591898556,-500.0,0.00021095,2]
[389153137,1759591898565,-500.0,0.00021095,2]
[389153138,1759591898575,-883.76,0.00021095,2]
[389153139,1759591898586,-500.0,0.00021095,2]
[389153140,1759591898596,-1284.14,0.00021095,2]
[389153141,1759591898605,-669.76,0.00021095,2]
[389153142,1759591898615,-5883.16,0.00021095,2]
[389153143,1759591898625,-5418.8,0.00021095,2]
[389153144,1759591898635,-500.0,0.00021095,2]
[389153145,1759591898645,-500.0,0.00021095,2]
[389153146,1759591898655,-1049.37,0.00021095,2]
[389153147,1759591898665,-659.62,0.00021095,2]
[389153148,1759591898675,-500.0,0.00021095,2]
[389153149,1759591898685,-599.3,0.00021095,2]
[389153150,1759591898695,-483.43029706,0.00021095,2]
[389153151,1759591898705,-500.0,0.00021095,2]
[389153152,1759591898715,-6787.62,0.00021095,2]
[389153153,1759591898725,-1550.12,0.00021095,2]
[389153154,1759591898735,-645.14,0.00021095,2]
[389153155,1759591898745,-1658.15,0.00021095,2]
[389153156,1759591898755,-500.0,0.00021095,2]
[389153157,1759591898765,-686.1,0.00021095,2]
[389153158,1759591898774,-250.0,0.000211,2]
[389153159,1759591898784,-250.0,0.000211,2]
[389153160,1759591898794,-250.0,0.000211,2]
[389153161,1759591898805,-250.0,0.000211,2]
[389153162,1759591898815,-250.0,0.000211,2]
[389153163,1759591898825,-162.3,0.000211,2]
[389153164,1759591898839,-1000.0,0.00021102,2]
[389153165,1759591898849,-1000.0,0.00021102,2]
[389153166,1759591898859,-1000.0,0.00021102,2]
[389153167,1759591898869,-1000.0,0.00021102,2]
[389153168,1759591898880,-1000.0,0.00021102,2]
[389153169,1759591898891,-1122.57948836,0.00021102,2]
[389153170,1759591898901,-500.36229035,0.00021102,2]
[389153171,1759591898912,-1000.0,0.00021102,2]
[389153172,1759591898922,-1615.91246736,0.00021116,2]
[389153173,1759591898933,-306.23613332,0.00021116,2]
[389153174,1759591898944,-2000.0,0.00021116,2]
[389153175,1759591898954,-152.32967578,0.00021121,2]
[389153176,1759591898964,-161.39146309,0.00021121,2]
[389153177,1759591898974,-500.0,0.00021137,2]
[389153178,1759591898984,-476.0,0.0002116,2]
[389153179,1759591898994,-500.0,0.00021203,2]
[389153180,1759591899003,-260.26,0.00021203,2]
[389153181,1759591899013,-2732.8139447,0.00021207,7]
[389153182,1759591899022,-168.0,0.0002127,2]
[389153183,1759591899033,-600.0,0.00021303,2]
[389153184,1759591899042,-157.21954893,0.00021307,2]
[389153185,1759591899053,-360.0,0.00021344,2]
[389153186,1759591899064,-381.22099437,0.00021364,2]
[389153187,1759591899075,-2500.0,0.00021364,2]
[389153188,1759591899085,-2500.0,0.00021364,2]
[389153189,1759591899095,-1004.99689927,0.00021364,2]
[389153190,1759591899105,-1358.62887915,0.00021364,2]
[389153191,1759591899115,-1500.0,0.00021364,2]
[389153192,1759591899126,-2500.0,0.00021364,2]
[389153193,1759591899136,-2000.0,0.00021364,2]
[389153194,1759591899146,-2500.0,0.00021364,2]
[389153195,1759591899155,-776.88669335,0.00021364,2]
[389153196,1759591899165,-1004.26767412,0.00021364,2]
[389153197,1759591899177,-2000.0,0.00021364,2]
[389153198,1759591899187,-2500.0,0.00021364,2]
[389153199,1759591899359,-1291.53893252,0.00021364,2]
[389153200,1759591899371,-2500.0,0.00021364,2]
[389153201,1759591899381,-2500.0,0.00021364,2]
[389153202,1759591899392,-2500.0,0.00021364,2]
[389153203,1759591899402,-394.71835207,0.00021364,2]
[389153204,1759591899412,-2500.0,0.00021364,2]
[389153205,1759591899421,-500.0,0.00021369,2]
[389153206,1759591899432,-500.0,0.00021369,2]
[389153207,1759591899443,-1039.39,0.00021369,2]
[389153208,1759591899452,-507.83,0.00021369,2]
[389153209,1759591899462,-500.0,0.00021369,2]
[389153210,1759591899471,-500.0,0.00021369,2]
[389153211,1759591899480,-1109.72,0.00021369,2]
[389153212,1759591899490,-658.4,0.00021369,2]
[389153213,1759591899500,-500.0,0.00021369,2]
[389153214,1759591899510,-500.0,0.00021369,2]
[389153215,1759591899519,-500.0,0.00021369,2]
[389153216,1759591899529,-1722.53,0.00021369,2]
[389153217,1759591899539,-500.0,0.00021369,2]
[389153218,1759591899548,-500.0,0.00021369,2]
[389153219,1759591899558,-500.0,0.00021369,2]
[389153220,1759591899568,-500.0,0.00021369,2]
[389153221,1759591899577,-500.0,0.00021369,2]
[389153222,1759591899587,-561.02,0.00021369,2]
[389153223,1759591899597,-500.0,0.00021369,2]
[389153224,1759591899607,-500.0,0.00021369,2]
[389153225,1759591899617,-606.7,0.00021369,2]
[389153226,1759591899626,-500.0,0.00021369,2]
[389153227,1759591899636,-576.96,0.00021369,2]
[389153228,1759591899646,-500.0,0.00021369,2]
[389153229,1759591899656,-500.0,0.00021369,2]
[389153230,1759591899665,-815.78,0.00021369,2]
[389153231,1759591899675,-500.0,0.00021369,2]
[389153232,1759591899685,-500.0,0.00021369,2]
[389153233,1759591899695,-551.35,0.00021369,2]